Cogmind - Beta 14 @@@ ROGUE MODE // 2024.11.25 @ 09:45:41 Player: Littlelink Result: Destroyed by Y-45 Defender with Heavy Assault Rifle Performance ------------- Evolutions (1) 500 Regions Visited (3) 600 Robots Destroyed (33) 165 Value Destroyed (586) 586 Prototype IDs (0) 0 Alien Tech Used (0) 0 Bonus (0) 0 TOTAL SCORE: 1851 Bonus ------- None Cogmind --------- Core Integrity 0/400 Matter 300/300 Energy 100/100 System Corruption 1% Temperature Cool (9) Movement Core (250) Ox4 Location -9/Materials Parts ------- > --- POWER (1) -------- (None) > --- PROPULSION (2) --- (None) > --- UTILITY (3) ------ Medium Storage Unit Visual Processing Unit Power Shielding > --- WEAPON (3) ------- Beam Rifle > --- INVENTORY (10) --- Light Armor Plating Authchip [R/NC] Authchip [R/Combat] Authchip [Propulsion] Authchip [Device] Tractor Beam Peak State ------------ > --- POWER ------------ Ion Engine > --- PROPULSION ------- Aluminum Leg > --- UTILITY ---------- Visual Processing Unit Power Shielding > --- WEAPON ----------- Assault Rifle Makeshift Shrapnel Gun Light Cannon > --- INVENTORY -------- Flight Unit EM Pulse Gun Datajack [Rating: 11] Favorites ----------- Power Ion Engine Engine Ion Engine Propulsion Aluminum Leg Leg Aluminum Leg Utility Visual Processing Unit Device Tractor Beam Storage Medium Storage Unit Processor Visual Processing Unit Protection Power Shielding Weapon Light Cannon Energy Gun Beam Rifle Ballistic Gun Makeshift Shrapnel Gun Ballistic Cannon Light Cannon Special Melee Weapon Datajack Build | -11 -10 -10 -9 ------- Run | Yrd Mat Min Mat Slots Evolved 2 | . . . 2 Power . | . . . . Propulsion . | . . . . Utility 1 | . . . 1 Weapon 1 | . . . 1 Parts Attached 27 | 6 5 1 15 Power 3 | 1 . . 2 Engine 3 | 1 . . 2 Core . | . . . . Reactor . | . . . . Propulsion 5 | 2 . . 3 Treads . | . . . . Leg 5 | 2 . . 3 Wheel . | . . . . Hover . | . . . . Flight . | . . . . Utility 7 | . 3 . 4 Device 2 | . 1 . 1 Storage 1 | . . . 1 Processor 1 | . 1 . . Hackware . | . . . . Protection 3 | . 1 . 2 Artifact . | . . . . Weapon 12 | 3 2 1 6 Energy Gun 5 | 2 . . 3 Energy Cannon . | . . . . Ballistic Gun 3 | 1 . 1 1 Ballistic Cannon 3 | . 2 . 1 Launcher . | . . . . Special Weapon . | . . . . Impact Weapon . | . . . . Slashing Weapon . | . . . . Piercing Weapon . | . . . . Special Melee Weapon 1 | . . . 1 Unidentified Prototypes . | . . . . Parts Lost 13 | . . 1 12 Power 2 | . . . 2 Propulsion 5 | . . 1 4 Utility . | . . . . Weapon 6 | . . . 6 Highest Loss Streak 6 | . . 1 6 To Critical Strikes . | . . . . Average Slot Usage (%) 85 | . 93 89 79 Engine 11 | . 14 14 8 Leg 20 | . 28 17 18 Device 1 | . 2 . 1 Storage 2 | . . . 5 Processor 11 | . 9 14 11 Protection 12 | . 10 14 11 Energy Gun 4 | . 2 . 8 Ballistic Gun 4 | . 2 7 3 Ballistic Cannon 12 | . 23 20 2 Special Melee Weapon 4 | . . . 8 Peak Build Rating 11 | 5 8 10 11 Average Rating 9 | 3 7 8 10 On Entrance 5 | . 5 8 10 Naked Turns . | . . . . Heaviest Build 22 | 9 13 12 22 Greatest Support 20 | 20 20 20 20 Greatest Overweight (x) 4 | . . 1 4 Average Overweight (x) . | . . . . Largest Inventory Capacity 10 | 5 5 5 10 Average Capacity 6 | 5 5 5 7 Most Carried 7 | 5 5 5 7 Average Carried 4 | 1 4 4 4 Final Capacity 10 | 5 5 5 10 Final Carried 6 | 1 5 5 6 Class Distribution -------------------- 62% | Mutant 30% | Scavenger-Mutant 6% | Tank Dominant Class ---------------- Mutant | -10/Materials Mutant | -10/Mines Scavenger-Mutant | -9/Materials Resources | -11 -10 -10 -9 ----------- Run | Yrd Mat Min Mat Matter Collected 902 | 260 306 154 182 Remotely 92 | . 22 . 70 Salvage Created 801 | . 193 117 491 Parts 53 | . 23 5 25 Haulers Intercepted 2 | . . . 2 Recyclers Shooed 2 | . 1 . 1 Parts Field Recycled . | . . . . Retrieved Matter . | . . . . Parts Self-Destructed . | . . . . Prevented . | . . . . Kills | -11 -10 -10 -9 ------- Run | Yrd Mat Min Mat Combat Hostiles Destroyed 24 | . 11 6 7 Guns 7 | . . . 7 Cannons 17 | . 11 6 . Classes Destroyed 8 | . 4 2 2 Worker 3 | . 1 . 2 Hauler 2 | . . . 2 Recycler 1 | . . 1 . Watcher 4 | . 3 . 1 Swarmer 14 | . 9 5 . Grunt 6 | . 2 . 4 Sentry 3 | . . . 3 Assembled 1 | . . 1 . Best Kill Streak 6 | . 6 3 2 Combat Bots Only 5 | . 5 3 2 Max Kills in Single Turn 2 | . 1 2 2 Gunslinging . | . . . . Exploded . | . . . . Melee . | . . . . Uniques/NPCs Destroyed . | . . . . Combat | -11 -10 -10 -9 -------- Run | Yrd Mat Min Mat Hostile Shots Fired 210 | . 57 38 115 Missed 61 | . 20 12 29 Damage Taken 1750 | . 292 218 1240 Core 502 | . 60 30 412 Absorbed by Shields . | . . . . Redirected to Shielding 35 | . 7 10 18 Core Remaining (%) 82 | 100 . 64 . Volleys Fired 112 | . 32 19 61 Largest 3 | . 2 2 3 Hottest 79 | . 70 70 79 Shots Fired 176 | . 64 38 74 Gun 69 | . . 4 65 Cannon 107 | . 64 34 9 Launcher . | . . . . Special . | . . . . Kinetic 126 | . 64 38 24 Thermal 49 | . . . 49 Explosive . | . . . . Electromagnetic 1 | . . . 1 Robot Hit Streak 7 | . 4 3 7 Robot Miss Streak 9 | . 9 5 4 Penetration Max . | . . . . Secondary Targets . | . . . . Shots Hit Robots 103 | . 20 13 70 Core Hits 43 | . 15 8 20 Critical Kills . | . . . . Critical Parts Destroyed . | . . . . Critical Strikes 3 | . . . 3 Burn 3 | . . . 3 Melee Attacks 29 | . . . 29 Impact . | . . . . Slashing . | . . . . Piercing . | . . . . Sneak Attacks 25 | . . . 25 Combat Hostiles . | . . . . Follow-up Attacks . | . . . . Damage Inflicted 1506 | . 524 300 682 Guns 666 | . . 44 622 Cannons 828 | . 524 251 53 Explosions . | . . . . Melee . | . . . . Ramming 12 | . . 5 7 Kinetic 1017 | . 524 295 198 Thermal 477 | . . . 477 Explosive . | . . . . Electromagnetic . | . . . . Impact . | . . . . Slashing . | . . . . Piercing . | . . . . Highest Corruption 1 | . . . 1 Average Corruption 1 | . . . 1 Corruption Purged . | . . . . Corruption Blocked . | . . . . Effects 3 | . . . 3 Message Errors 1 | . . . 1 Energy Discharges 2 | . . . 2 Overload Shots . | . . . . Overflow Damage . | . . . . Projectiles . | . . . . Explosions . | . . . . Melee . | . . . . Knockbacks 9 | . 8 1 . Impact . | . . . . Kinetic 7 | . 6 1 . Secondary 2 | . 2 . . Self-Inflicted Damage . | . . . . Shots . | . . . . Rammed 5 | . . . 5 Targets Rammed 9 | . . 2 7 Kicked 4 | . . 2 2 Crushed . | . . . . Highest Temperature 192 | . 63 72 192 Average Temperature 38 | . 24 34 49 Received Heat Transfer 495 | . 12 . 483 Siege Activations . | . . . . Robots Corrupted . | . . . . Combat Hostiles . | . . . . Parts Fried . | . . . . Impact Corruptions . | . . . . Robots Melted . | . . . . Combat Hostiles . | . . . . Parts Melted 4 | . . . 4 Heat Transferred 1443 | . . . 1443 Parts Sabotaged . | . . . . Parts Stolen . | . . . . Parts Stripped . | . . . . Power Chain Reactions . | . . . . Alert | -11 -10 -10 -9 ------- Run | Yrd Mat Min Mat Peak Influence 386 | . 386 196 138 Initial 81 | . . 81 . Average 75 | . 131 86 49 Maximum Alert Level 1 | . 1 . . Low Security (%) 89 | 100 49 100 100 Level 1 10 | . 50 . . Level 2 . | . . . . Level 3 . | . . . . Level 4 . | . . . . Level 5 . | . . . . High Security . | . . . . Max Security . | . . . . Squads Dispatched 4 | . 2 . 2 Investigation 1 | . 1 . . Extermination . | . . . . Reinforcement 3 | . 1 . 2 Assault . | . . . . Garrison . | . . . . Intercept . | . . . . Searches Triggered . | . . . . Construction Impeded . | . . . . Haulers Reinforced . | . . . . Active Scanning Responses . | . . . . Cargo Convoy Interrupts . | . . . . Stealth | -11 -10 -10 -9 --------- Run | Yrd Mat Min Mat Distress Signals 5 | . 4 . 1 Communications Jammed . | . . . . Distress Signals . | . . . . Times Spotted 46 | . 16 6 24 Peak Tracking Total 5 | . 5 3 3 Tactical Retreats 4 | . 2 . 2 Traps | -11 -10 -10 -9 ------- Run | Yrd Mat Min Mat Traps Triggered 3 | . 1 . 2 Indirectly . | . . . . Trap Hack Attempts . | . . . . Triggered . | . . . . Disarmed . | . . . . Reprogrammed . | . . . . Reused . | . . . . Traps Extracted . | . . . . Installed . | . . . . Triggered . | . . . . Machines | -11 -10 -10 -9 ---------- Run | Yrd Mat Min Mat Machines Disabled 3 | . 3 . . Max in Single Turn 1 | . 1 . . Machines Repaired . | . . . . Machines Dismantled . | . . . . Machines Sabotaged . | . . . . Overloaded Fab Kills . | . . . . Hacking | -11 -10 -10 -9 --------- Run | Yrd Mat Min Mat Machines Accessed 4 | . 2 . 2 Terminals 3 | . 2 . 1 Fabricators . | . . . . Repair Stations . | . . . . Recycling Units 1 | . . . 1 Scanalyzers . | . . . . Garrison Access . | . . . . Total Hacks 11 | . 6 . 5 Successful 6 | . 4 . 2 Failed 5 | . 2 . 3 Catastrophic 1 | . 1 . . Database Lockouts . | . . . . Manual . | . . . . Terminals 9 | . 6 . 3 Fabricators . | . . . . Repair Stations . | . . . . Recycling Units 2 | . . . 2 Scanalyzers . | . . . . Garrison Access . | . . . . Terminal Hacks 5 | . 4 . 1 Record 2 | . 1 . 1 Alert Level 1 | . 1 . . Dispatch Records 1 | . 1 . . Zone Layout 1 | . 1 . . Fabricator Hacks . | . . . . Repair Station Hacks . | . . . . Recycling Unit Hacks 1 | . . . 1 Report Inventory 1 | . . . 1 Scanalyzer . | . . . . Garrison Access Hacks . | . . . . Unauthorized Hacks . | . . . . Terminals . | . . . . Fabricators . | . . . . Repair Stations . | . . . . Recycling Units . | . . . . Scanalyzers . | . . . . Garrison Access . | . . . . Data Cores Recovered . | . . . . Used . | . . . . Hacking Detections 3 | . 2 . 1 Full Trace Events 2 | . 1 . 1 Feedback Events . | . . . . Feedback Blocked . | . . . . Robot Schematics Acquired . | . . . . Robots Built . | . . . . Authchips . | . . . . Time . | . . . . Total Robot Build Rating . | . . . . Part Schematics Acquired . | . . . . Parts Built . | . . . . Authchips . | . . . . Time . | . . . . Total Part Build Rating . | . . . . Parts Repaired . | . . . . Time . | . . . . Parts Recycled . | . . . . Recycled Matter . | . . . . Retrieved Matter . | . . . . Retrieved Components . | . . . . Parts Scanalyzed . | . . . . Part Schematics Acquired . | . . . . Parts Damaged . | . . . . Bothacking | -11 -10 -10 -9 ------------ Run | Yrd Mat Min Mat Used RIF Installer . | . . . . Robots Hacked 12 | . . . 12 Non-combat 9 | . . . 9 Combat 3 | . . . 3 Robot Hacks Applied 19 | . . . 19 parse_system 10 | . . . 10 no_distress 6 | . . . 6 find_recycling 1 | . . . 1 find_station 1 | . . . 1 check_alert 1 | . . . 1 Relay Couplers Released . | . . . . Fabnet Peak Effective % . | . . . . Robots Rewired . | . . . . Allies Hacked . | . . . . Hacks Repelled . | . . . . Allies | -11 -10 -10 -9 -------- Run | Yrd Mat Min Mat Total Allies . | . . . . Largest Group . | . . . . Highest-Rated Group . | . . . . Highest-Rated Ally . | . . . . Total Orders . | . . . . Ally Attacks . | . . . . Total Damage . | . . . . Kills . | . . . . Allies Corrupted . | . . . . Allies Melted . | . . . . Intel | -11 -10 -10 -9 ------- Run | Yrd Mat Min Mat Robot Analysis Total . | . . . . Derelict Logs Recovered 1 | . . 1 . Drone Launches . | . . . . Drone Recoveries . | . . . . Exploration | -11 -10 -10 -9 ------------- Run | Yrd Mat Min Mat Turns Passed 2774 | 62 592 764 1356 Spaces Moved 1546 | 51 402 421 672 Core 86 | 16 . . 70 Treads . | . . . . Legs 1460 | 35 402 421 602 Wheels . | . . . . Hover . | . . . . Flight . | . . . . Fastest Speed 50 | 50 120 120 50 Average Speed 146 | 98 120 166 154 Slowest Speed 250 | 120 120 190 250 Overloaded Moves . | . . . . Propulsion Burnouts . | . . . . Robots Hopped . | . . . . Cave-ins Triggered . | . . . . Exploration Rate (%) 40 | 3 66 45 49 Regions Visited 3 Branch Regions 1 Pre-discovered Areas 1 | . . 1 . Known Exits Taken . | . . . . Unknown Exits Taken 3 | 1 1 1 . Scrap Searched . | . . . . Spaces Dug . | . . . . Terrain Destroyed . | . . . . Melee . | . . . . Projectile . | . . . . AOE . | . . . . Terrain Rammed . | . . . . Walls Destroyed . | . . . . Machines Disabled . | . . . . Actions | -11 -10 -10 -9 --------- Run | Yrd Mat Min Mat Total 1853 | 62 446 446 899 Wait 95 | . . . 95 Move 1543 | 50 401 420 672 Hop . | . . . . Pick Up 32 | 6 7 2 17 Fast Attach . | . . . . Attach 20 | 5 2 . 13 Detach . | . . . . Swap 7 | 1 3 1 2 Drop 6 | . 1 2 3 Fire 112 | . 32 19 61 Melee 29 | . . . 29 Ram 5 | . . . 5 Kick 4 | . . 2 2 Crush . | . . . . Escape Stasis . | . . . . Rewire . | . . . . Trap . | . . . . Miscellaneous . | . . . . Route ------- -11/Scrapyard -10/Materials (discovered 2 exits: *Mat / [*Min]) -10/Mines -9/Materials (discovered 3 exits: [*Mat] / [*Min x2]) History --------- Turn | Location | Event 5 | -11/Scrapyard | Discovered new exit (range 16) 63 | -11/Scrapyard | Entered Materials 300 | -10/Materials | Build established: Mutant 477 | -10/Materials | Discovered new exit (range 18) 556 | -10/Materials | Discovered new exit (range 7) 655 | -10/Materials | Entered Mines 660 | -10/Mines | Met a Derelict bent on vengeance 988 | -10/Mines | A weapon hastily lodged in a ceiling crevice suddenly fell to the ground 996 | -10/Mines | Assembled infested the area 1224 | -10/Mines | Learned location of Zion (-6) 1387 | -10/Mines | Discovered new exit (range 5) 1419 | -10/Mines | Entered Materials 1419 | -9/Materials | Evolved 2 slots: Utility x1, Weapon x1 1754 | -9/Materials | Lost 6 parts (1p1n4w) 1903 | -9/Materials | Discovered new exit (range 18) 1942 | -9/Materials | Core integrity fell below 50% 2373 | -9/Materials | Discovered new exit (range 12) 2389 | -9/Materials | Build established: Scavenger-Mutant 2758 | -9/Materials | Core integrity fell below 20% 2769 | -9/Materials | Discovered new exit (range 13) 2775 | -9/Materials | Destroyed by Y-45 Defender with Heavy Assault Rifle Last Messages --------------- Jacked Y-45 Defender... >>parse_system Reading system data... U-05 Engineer destroyed. Datajack destroyed. Acquired Lgt. Armor Plating. K-01 Serf collects debris. R-06 Scavenger collects Structural Scanner. Aluminum Leg destroyed. K-01 Serf collects debris. R-06 Scavenger collects Wheel. Aluminum Leg destroyed. K-01 Serf collects debris. Slammed into Y-45 Defender. Ion Engine destroyed. K-01 Serf collects debris. Slammed into Y-45 Defender. EXIT=FOUND Slammed into Y-45 Defender. Destabilizing: Core damaged (-8). Map ----- +----------------------------------------------------+ | ?????????????# ##+###???????????????????????# | | ?????????????# #???????????????????????# | | ?????????????# #?????????????########### | | ?????????????# "" #??????????? + | | ?????????????# Y" #?????????"" ## | | ?????########## "" ######?? """ ## | | ?????# # # """ ## | | ?????# + % / ## ######## | | ?????# ! # # """ ## #??????# | | ?????# # %##### #?? """ ## #??????# | | ?????########## % # ## #????"" ## #??????# | | ?????????###### # ## #?????? ?# ########+ | | ######???# # ## #???#+#???# + | | # #???# # ### #???# #???# # """ | | # #???# # ###%##### ##### # """ | | # #???# # # %% # """ | | # #???# ###" "# ### + | | # #???# #?##### #?# # """ | | # #???# #?????# #?# ##########+##+# """ | | # ##### #######+### #???# # """ | | # # + ##o #???# """ """ # | | # # # """" ## ##??# """ """ ####### | | ###+## ######### """""% # #??# """ """ #?????? | | #???????# """"" #g #??# #?????? | | ###### #???????# + % #??# #?????? | | ?????# #???????# """"" #@Y #??# #?????? | | ???### ###?????# """"" # #??# #?????? | | ???# #?????# """"" ## ##??###########?????? | | ???# % #?????# ## #???????????????????? | | #??# #?????########### #???????????????????? | | #??# #???????????????# #???????????????????? | | #??# #???????????????# #???????????????????? | | ######+#####?????????????# #???????????????????? | | ?# #?????????????? #???????????????????? | | ?# #?????????????? ???????????????????? | | ?# """ """ #??????????????? ???????????????????? | | ?# """ """ #???????????????< ??????????????????? | | ?# """ """ #??????????????? ??????????????????? | | ?# #??????????????? ##?????????????????? | | ?# #????????????????###??????????????????? | | ?# """T""" #?????????????????????????????????????? | | ?###########?????????????????????????????????????? | | | | | | | | | | | | | | | | | +----------------------------------------------------+ Best States ------------- Heat Dissipation 28 Energy Generation 10 Energy Capacity 250 Matter Stores 300 Matter Capacity 300 Sight Range 18 Terrain Scan Density 10 Armor Coverage 150 Power Shielding 33 Evasion (%) 55 Authchip Count 4 Item Schematics ----------------- None Robot Schematics ------------------ None Fabricated ------------ Nothing Alien Tech Used ----------------- None Achievements -------------- None Challenges ------------ None Game ------ Seed AntigravForceFirepult Manual? 0 Play Time 00:24:39 Cumulative 6.7 hours Start 2024.11.23 @ 19:08:53 End 2024.11.25 @ 09:45:41 Sessions 3 Manual Loads 0 Difficulty Rogue Special Mode None Game No. 19 Rogue 19 Adventurer 0 Explorer 0 Win Type - Total 0 Types 0/0/0/0/0/0/0/0/0 Lore% 5 Gallery% 12 Achievement% 12 Wizard Run 0 Options --------- Layout 1 ASCII 0 Keyboard 0 Movement Arrows Keybinds 0 Fullscreen 1 Font 18/SmallcapsGlow Map View 50x40 Zoom Use 0% Tactical HUD 0 Map Filters NONE Filters NONE Steam 1 RUN: bfcdb1e7-4fd3-4026-9dad-61adca6fde04